bitfinex-derivatives/quotes_ETHF0:USTF0_20220108
["timestamp","ask_amount","ask_price","bid_price","bid_amount"]
[1641666678620,0.08173,3059.5,3058.3,0.642787]
[1641666678821,0.08173,3059.5,3058.3,0.002]
[1641666678822,2.00479,3058.9,3058.3,0.002]
[1641666679220,2.269578,3058.9,3058.3,0.002]
[1641666679620,2.269578,3058.9,3057.9,2.00479]
[1641666679826,3.143378,3058.9,3057.9,2.00479]
[1641666680425,3.143378,3058.9,3057.9,3.63864611]
[1641666680721,2.00479,3058.4,3057.9,3.63864611]
[1641666680921,2.00479,3058.4,3057.9,2.647577]
[1641666680922,2.269578,3058.4,3057.9,2.647577]
[1641666681122,2.269578,3058.4,3057.9,4.28143311]
[1641666681523,2.269578,3058.4,3057.9,2.00679]
[1641666681723,2.00479,3058.4,3057.9,2.00679]
[1641666681927,0.08173,3059.5,3058.3,1.5]
[1641666682123,0.08173,3060.2,3059.0,1.63327437]
[1641666682323,0.08171,3060.5,3058.2,2.69661515]
[1641666682524,1.63346913,3060.3,3058.6,1.63346913]
[1641666682724,2.00479,3059.7,3058.9,2.00479]
[1641666682926,1.5,3059.0,3056.6,1.69595315]
[1641666683127,0.6846,3059.0,3057.1,1.26642887]
[1641666683426,1.5,3059.2,3057.1,1.26642887]
[1641666683629,0.08173,3059.1,3057.4,1.5]
[1641666683827,0.08173,3059.1,3057.4,3.1340964]
[1641666684026,1.6340964,3059.2,3057.4,3.1340964]
[1641666684528,0.08173,3059.4,3058.2,1.63366393]
[1641666684726,2.00479,3058.9,3058.2,1.63366393]
[1641666684926,2.00479,3058.9,3058.3,0.002]
[1641666685227,0.264788,3058.8,3058.3,0.002]
[1641666685426,0.264788,3058.8,3058.1,2.00479]
[1641666685628,0.346518,3058.8,3058.2,0.002]
[1641666685827,2.00479,3058.9,3057.9,1.5]
[1641666686027,2.00479,3058.9,3058.4,1.63355719]
[1641666686229,2.00479,3059.7,3058.6,0.98083114]
[1641666686828,2.00479,3059.7,3058.8,2.00479]
[1641666687031,16.0965,3059.7,3058.5,2.00479]
[1641666687431,2.58588512,3062.8,3058.5,2.00479]
[1641666687632,0.08172,3061.9,3060.7,1.5]
[1641666687832,0.08169,3063.2,3062.2,0.002]
[1641666688031,0.97357844,3063.1,3062.8,1.5]
[1641666688230,2.5311296,3063.3,3063.0,1.5]
[1641666688431,0.3331296,3063.2,3063.0,1.5]
[1641666688630,2.8368211,3063.5,3062.5,0.97956508]
[1641666688833,0.63562316,3063.9,3063.2,0.97530936]
[1641666689033,1.99995048,3064.4,3063.4,4.00958]
[1641666689237,1.63495048,3064.4,3063.4,4.00958]
[1641666689638,1.25205048,3064.4,3063.4,4.00958]
[1641666689835,1.5,3063.8,3062.4,1.63152631]
[1641666690036,1.5,3063.8,3062.2,0.002]
[1641666690436,1.5,3064.0,3062.2,0.002]
[1641666690636,1.63131339,3064.5,3062.8,1.63131339]
[1641666690838,2.00479,3064.6,3064.5,0.002]
[1641666691035,2.269578,3064.6,3064.5,0.002]
[1641666691236,3.769578,3064.6,3063.9,2.00479]
[1641666691438,1.5,3064.0,3062.1,0.6335]
[1641666691637,1.5,3063.8,3061.7,31.79613982]
[1641666691838,1.5,3062.9,3062.2,1.63164876]
[1641666692036,0.264788,3062.8,3062.1,1.09412334]
[1641666692437,0.264788,3062.8,3062.2,0.640787]
[1641666692837,2.00479,3063.2,3062.6,1.63141452]
[1641666693037,0.08161,3064.1,3062.6,1.63141452]
[1641666693236,1.5,3064.1,3062.6,1.63141452]
[1641666693438,1.5,3063.6,3062.6,1.63141452]
[1641666693637,0.0816,3064.2,3062.6,1.63141452]
[1641666694437,0.0816,3064.2,3063.1,1.63115639]
[1641666694637,0.0816,3064.6,3063.1,1.63115639]
[1641666694839,2.00479,3064.0,3063.2,2.00479]
[1641666695037,2.00479,3064.0,3063.3,0.640787]
[1641666695440,2.00479,3064.3,3063.3,0.640787]
[1641666695639,2.00479,3064.3,3063.7,1.63080792]
[1641666695839,0.08158,3065.1,3063.7,1.63080792]
[1641666696038,0.08157,3065.7,3063.3,0.640787]
[1641666696238,1.5,3064.6,3063.3,0.640787]
[1641666696438,0.08157,3066.0,3063.3,0.640787]
[1641666696439,1.5,3064.4,3063.7,1.63084515]
[1641666696639,0.264788,3064.3,3063.3,0.640787]
[1641666696839,0.264788,3064.3,3063.9,2.00479]
[1641666697639,1.5,3064.1,3063.9,2.00479]
[1641666697839,0.264788,3064.0,3062.9,1.63108455]
[1641666698339,0.264788,3064.0,3062.9,1.09412334]
[1641666698340,1.764788,3064.0,3062.9,1.09412334]
[1641666698840,2.00479,3063.7,3062.9,3.09891334]
[1641666699239,2.00479,3063.7,3063.0,0.640787]
[1641666700643,2.269578,3063.7,3062.9,3.63604484]
[1641666700842,0.264788,3063.7,3063.3,2.00479]
[1641666701042,1.764788,3063.7,3063.3,2.00479]
[1641666701643,0.0816,3064.3,3063.3,2.00479]
[1641666701844,0.6846,3064.9,3063.3,2.00479]
[1641666702042,0.08158,3065.4,3063.9,1.6307175]
[1641666702647,2.4122,3065.1,3063.9,1.6307175]
[1641666702947,1.5,3064.7,3064.4,2.00479]
[1641666703145,2.91699,3065.1,3064.4,2.00479]
[1641666703348,1.5,3064.7,3064.4,2.00479]
[1641666703547,1.5,3064.5,3064.4,2.00479]
[1641666704347,0.264788,3064.4,3063.3,1.63106061]
[1641666704547,0.346368,3064.4,3063.6,2.61010987]
[1641666704747,0.264788,3064.4,3063.7,0.640787]
[1641666704949,0.08158,3065.0,3063.7,2.645577]
[1641666705150,1.71263263,3065.0,3063.7,2.645577]
[1641666705348,15.72263263,3065.0,3063.7,2.645577]
[1641666705549,16.40723263,3065.0,3063.7,2.645577]
[1641666706149,1.5,3064.5,3063.7,2.00479]
[1641666706349,0.346368,3064.4,3063.7,2.00479]
[1641666706549,1.5,3063.9,3063.7,2.00479]
[1641666706748,0.6846,3064.5,3063.7,2.00479]
[1641666706949,1.5,3064.0,3063.7,2.00479]
[1641666707349,1.5,3063.8,3063.7,2.00479]
[1641666707853,0.264788,3063.8,3063.7,2.00479]
[1641666708054,0.264788,3063.8,3062.9,1.09412334]
[1641666708252,0.0816,3064.6,3063.4,1.63098879]
[1641666708451,2.00479,3064.7,3063.4,1.63098879]
[1641666708653,3.50479,3064.7,3063.4,1.63098879]
[1641666708852,3.50479,3064.7,3063.9,2.00479]
[1641666709054,0.264788,3064.6,3064.0,0.264788]
[1641666710152,2.00479,3064.7,3064.1,0.640787]
[1641666710555,2.00479,3064.7,3064.2,0.264788]
[1641666711358,0.264788,3064.6,3064.2,0.264788]
[1641666711755,1.5,3064.5,3063.9,2.00479]
[1641666712054,1.5,3064.1,3063.9,2.00479]
[1641666712254,1.764788,3064.4,3063.9,2.269578]
[1641666712453,0.264788,3064.4,3063.9,2.269578]
[1641666713253,0.08157,3065.0,3063.9,2.269578]
[1641666713456,0.08157,3065.3,3064.3,1.6305234]
[1641666713656,0.08157,3065.9,3064.3,1.6305234]
[1641666713855,3.8151234,3066.0,3064.7,0.97888061]
[1641666714056,1.6305234,3066.0,3064.7,0.97888061]
[1641666714258,3.1305234,3066.0,3064.7,0.97888061]
[1641666714559,1.5,3065.4,3064.7,0.97888061]
[1641666714756,1.5,3065.3,3064.8,0.905575]
[1641666714963,1.5,3065.3,3065.2,2.00479]
[1641666716657,3.6353134,3066.0,3065.2,2.00479]
[1641666716856,0.264788,3065.9,3065.2,2.00479]
[1641666718360,1.63091431,3065.3,3063.9,1.63072016]
[1641666718561,0.8574,3065.3,3063.5,1.09412334]
[1641666718758,1.63093027,3065.2,3063.5,1.63093027]
[1641666718958,2.00479,3064.5,3063.8,2.00479]
[1641666719158,2.00479,3064.5,3063.9,2.405575]
[1641666719359,2.00479,3064.5,3063.9,0.905575]
[1641666720960,2.269578,3064.5,3063.9,0.905575]
[1641666721560,2.269578,3064.5,3064.1,1.5]
[1641666721561,2.00479,3064.5,3064.1,1.5]
[1641666721761,0.08157,3065.4,3064.4,1.5]
[1641666721963,0.08155,3066.2,3064.9,1.5]
[1641666722264,5.414,3066.3,3064.9,1.5]
[1641666722462,1.63024961,3066.5,3064.9,2.47881783]
[1641666722664,1.63024961,3066.5,3064.9,0.97881783]
[1641666722862,2.00479,3066.1,3065.4,2.00479]
[1641666723064,0.264788,3066.0,3065.5,0.905575]
[1641666723864,0.264788,3066.0,3065.5,0.640787]
[1641666724164,14.01,3065.5,3064.4,0.97897941]
[1641666724366,14.6513,3065.5,3063.4,3.12242273]
[1641666724565,0.08157,3065.4,3063.4,3.12242273]
[1641666724765,0.08157,3065.4,3063.5,1.5]
[1641666724965,2.00479,3064.4,3063.7,2.00479]
[1641666725164,2.00479,3064.4,3064.2,0.905575]
[1641666725367,2.00479,3064.4,3063.5,0.9792437]
[1641666725568,12.00478999,3064.4,3063.8,3.47e-06]
[1641666725867,11.63151565,3064.1,3063.4,1.62242273]
[1641666726065,1.63171799,3063.8,3062.5,3.72384811]
[1641666726366,0.264788,3063.7,3063.2,0.8070608]
[1641666726965,2.00479,3063.4,3063.2,1.0718488]
[1641666727567,2.00479,3063.4,3063.2,0.264788]
[1641666728069,2.86199,3063.4,3062.7,2.00479]
[1641666728269,0.6388898,3063.4,3062.8,0.264788]
[1641666729067,0.6388898,3063.4,3063.2,2.00479]
[1641666729268,2.00479,3063.7,3063.3,0.264788]
[1641666729867,2.269578,3063.7,3063.3,0.264788]
[1641666730068,12.26957799,3063.7,3062.0,0.4872]
[1641666730268,15.64182716,3063.6,3061.9,1.5]
[1641666730467,15.72343716,3063.6,3061.9,1.5]
[1641666730672,25.72343715,3063.6,3061.9,1.5]
[1641666730867,0.6846,3063.4,3061.9,1.5]
[1641666731069,2.00479,3062.9,3062.4,1.5]
[1641666731269,2.00479,3062.9,3062.5,0.905575]
[1641666731568,0.7081,3063.4,3062.5,0.905575]
[1641666732571,0.7081,3063.4,3062.5,0.264788]
[1641666732771,0.76621,3063.6,3062.5,0.264788]
[1641666732971,2.00479,3063.3,3063.0,1.5]
[1641666733173,2.00479,3063.7,3062.9,0.905575]
[1641666733572,0.264788,3063.6,3062.9,0.905575]
[1641666735074,0.264788,3063.6,3062.6,2.00479]
[1641666737074,0.264788,3063.6,3062.1,2.00479]
[1641666737075,1.63213611,3063.0,3062.1,2.00479]
[1641666737278,0.08162,3062.9,3061.8,2.00479]
[1641666737576,1.63252779,3062.2,3061.8,2.00479]
[1641666737775,0.264788,3062.1,3061.8,2.00479]
[1641666737976,0.264788,3062.1,3061.6,1.07882024]
[1641666738574,0.264788,3062.1,3061.4,1.34322331]
[1641666738775,0.08164,3062.0,3061.4,1.34322331]
[1641666738975,0.08164,3062.0,3061.4,2.331e-05]
[1641666738976,4.00958,3061.5,3061.4,2.331e-05]
[1641666739380,4.356018,3061.5,3061.2,1.60981491]
[1641666739575,1.71464432,3061.4,3061.0,6.042e-05]
[1641666739776,0.82440263,3061.4,3060.2,2.2599118]
[1641666739976,0.004,3061.0,3060.2,2.2599118]
[1641666740176,1.63345846,3060.5,3059.7,1.49288224]
[1641666740578,0.264788,3060.4,3059.7,1.49288224]
[1641666740978,4.00958,3059.8,3059.7,1.49288224]
[1641666741177,4.274368,3059.8,3059.7,1.49288224]
[1641666741376,4.274368,3059.8,3059.3,2.70446068]
[1641666741777,4.274368,3059.8,3059.3,2.96924868]
[1641666741978,4.00958,3059.8,3059.3,1.764788]
[1641666742176,2.00479,3059.8,3059.3,1.764788]
[1641666742877,2.269578,3059.8,3059.4,1.5]
[1641666743080,2.00479,3059.5,3059.4,1.496]
[1641666743679,0.04432466,3059.7,3059.4,1.496]
[1641666744180,0.04432466,3059.7,3059.2,0.264788]
[1641666744879,0.04432466,3059.7,3058.9,1.496]
[1641666745080,2.00479,3059.4,3058.9,1.496]
[1641666745281,2.049115,3059.4,3058.9,1.496]
[1641666745583,2.049115,3059.4,3059.0,0.264788]
[1641666745781,2.00479,3059.4,3059.3,1.496]
[1641666745984,0.6846,3060.0,3059.3,1.496]
[1641666745985,0.08171,3060.5,3059.3,1.496]
[1641666746182,1.63320502,3061.0,3060.1,1.496]
[1641666746383,0.08168,3061.6,3059.8,1.496]
[1641666746583,0.08168,3061.7,3059.8,1.496]
[1641666746783,1.67685356,3061.6,3059.8,1.496]
[1641666746985,2.00479,3061.1,3060.3,2.00479]
[1641666747186,1.63329038,3060.8,3060.3,2.00479]
[1641666747586,0.044325,3060.7,3059.4,1.496]
[1641666747786,0.126005,3060.7,3059.4,1.496]
[1641666747986,0.810605,3060.7,3059.4,1.496]
[1641666748689,0.810605,3060.7,3058.6,1.26075156]
[1641666748690,0.126005,3060.7,3058.6,1.26075156]
[1641666748886,1.63377603,3059.9,3059.0,1.496]
[1641666749086,2.00479,3059.5,3059.0,1.496]
[1641666749286,2.049115,3059.5,3059.0,1.760788]
[1641666749686,2.049115,3059.5,3059.0,2.401575]
[1641666749990,2.00479,3059.5,3059.2,1.496]
[1641666750187,2.00479,3059.8,3059.3,0.264788]
[1641666751088,2.00479,3059.8,3059.3,2.269578]
[1641666752187,2.049115,3059.8,3059.3,2.269578]
[1641666752387,2.049115,3059.8,3059.4,1.496]
[1641666752788,2.00479,3059.8,3059.7,1.496]
[1641666752988,1.19750645,3061.2,3059.7,1.496]
[1641666752989,2.08648,3061.1,3059.7,5.40188944]
[1641666753189,2.08648,3061.1,3059.8,1.496]
[1641666753388,1.6333544,3060.7,3059.8,1.496]
[1641666753591,1.6333544,3060.7,3060.1,1.496]
[1641666753787,0.044325,3060.6,3059.7,2.00479]
[1641666753989,0.044325,3060.6,3060.1,1.496]
[1641666754189,3.637931,3061.1,3060.5,1.496]
[1641666754389,2.00479,3061.4,3060.8,1.496]
[1641666754590,2.00479,3061.4,3060.9,1.760788]
[1641666754790,2.049115,3061.4,3060.3,0.8385]
[1641666754990,2.049115,3061.4,3060.5,3.50079]
[1641666756293,2.130785,3061.4,3060.5,3.50079]
[1641666756492,1.63328771,3060.8,3060.3,0.8385]
[1641666756695,0.044325,3060.7,3060.3,0.8385]
[1641666757094,2.00479,3060.6,3060.3,0.8385]
[1641666757296,0.044325,3060.5,3060.3,0.8385]
[1641666758395,1.67778612,3060.5,3060.3,0.8385]
[1641666761406,1.67778612,3060.5,3060.4,1.496]
[1641666761710,2.00479,3061.4,3060.4,2.996]
[1641666761905,2.00479,3061.4,3060.3,0.8385]
[1641666762106,2.00479,3061.4,3060.8,1.496]
[1641666762306,0.044325,3061.3,3060.8,1.496]
[1641666762708,0.044325,3061.3,3060.3,0.8385]
[1641666762908,0.044325,3061.3,3060.5,1.496]
[1641666762909,1.67733799,3061.3,3060.5,1.496]
[1641666763110,0.044325,3061.3,3060.5,1.496]
[1641666763607,4.00958,3061.4,3060.4,2.00479]
[1641666763608,4.00958,3061.4,3060.9,1.496]
[1641666763810,4.00958,3061.4,3060.9,2.136787]
[1641666764007,4.00958,3061.4,3061.3,1.496]
[1641666764408,4.00958,3061.4,3061.1,0.264788]
[1641666764608,4.00958,3061.4,3060.5,1.496]
[1641666765008,4.00958,3061.4,3060.8,2.00479]
[1641666765208,0.044325,3061.3,3060.8,2.00479]
[1641666765409,0.044325,3061.3,3060.4,2.00479]
[1641666765810,0.044325,3061.3,3060.9,1.496]
[1641666766414,0.044325,3061.3,3060.4,2.00479]
[1641666766612,0.044325,3061.3,3060.6,1.496]
[1641666767916,0.044325,3061.3,3060.7,0.640787]
[1641666768116,0.044325,3061.3,3060.7,1.316187]
[1641666768416,2.00479,3061.4,3060.7,1.580975]
[1641666768616,2.00479,3061.4,3061.2,1.496]
[1641666768920,0.08167,3062.5,3061.3,0.264788]
[1641666769216,1.63221869,3062.8,3061.7,2.00479]
[1641666769217,2.00479,3062.7,3061.7,2.00479]
[1641666770017,3.63708329,3062.7,3061.7,2.00479]
[1641666770416,3.63708329,3062.7,3061.9,1.496]
[1641666770619,2.00479,3062.7,3062.6,1.496]
[1641666770819,2.00479,3063.0,3062.6,1.496]
[1641666771020,5.414,3063.6,3062.9,1.496]
[1641666771222,5.414,3063.6,3063.5,1.496]
[1641666771424,2.00479,3064.0,3063.5,1.496]
[1641666771620,2.00479,3064.0,3063.5,0.264788]
[1641666771822,2.00279,3064.0,3063.5,1.760788]
[1641666772021,2.047115,3064.0,3063.5,1.760788]
[1641666772221,2.047115,3064.0,3063.5,0.264788]
[1641666772520,2.047115,3064.0,3063.4,1.496]
[1641666772821,2.00279,3064.0,3063.5,0.905575]
[1641666773022,2.00279,3064.0,3063.9,1.496]
[1641666773220,1.63121759,3064.7,3063.9,1.496]
[1641666773420,0.044325,3064.6,3063.9,1.496]
[1641666773622,0.08157,3065.5,3064.5,1.496]
[1641666773822,5.49555,3065.6,3064.9,1.496]
[1641666774025,0.044325,3065.5,3065.1,1.496]
[1641666774421,0.82476866,3065.7,3065.4,1.496]
[1641666774621,0.044325,3065.7,3065.4,1.496]
[1641666774822,0.08154,3066.2,3065.4,1.760788]
[1641666775121,2.00479,3066.0,3065.4,1.496]
[1641666775523,0.044325,3065.9,3065.4,1.496]
[1641666775723,0.125855,3065.9,3065.3,2.00479]
[1641666775921,0.125855,3065.9,3063.0,42.8026]
[1641666776122,1.63103401,3065.1,3064.5,1.496]
[1641666776322,0.044325,3065.0,3064.5,1.496]
[1641666776624,1.63093559,3065.2,3064.5,1.496]
[1641666776822,0.044325,3065.1,3064.5,1.496]
[1641666777020,0.044325,3065.1,3064.7,1.496]
[1641666777224,2.00479,3064.8,3064.7,1.496]
[1641666777521,0.08157,3065.5,3064.7,1.760788]
[1641666777722,0.08155,3066.6,3064.7,0.264788]
[1641666777926,0.08155,3066.6,3064.7,1.764788]
[1641666778123,0.82476866,3066.3,3065.8,1.496]
[1641666778322,0.82476866,3066.3,3065.9,0.264788]
[1641666778723,0.82476866,3066.3,3066.2,1.496]
[1641666778923,0.82476866,3066.3,3066.0,1.760788]
[1641666779125,0.82476866,3066.3,3066.2,2.00479]
[1641666779325,0.82476866,3066.3,3066.0,0.264788]
[1641666779724,0.044325,3066.5,3066.0,0.264788]
[1641666780425,0.08153,3066.8,3066.0,0.264788]
[1641666780625,2.00479,3066.9,3066.0,0.264788]
[1641666780825,2.00479,3066.9,3066.5,1.496]
[1641666781025,0.044325,3066.8,3065.3,1.496]
[1641666781226,2.00479,3066.2,3065.1,1.496]
[1641666781425,0.08153,3066.1,3064.5,0.4836]
[1641666781629,0.08153,3066.1,3064.6,1.5]
[1641666781826,0.08153,3066.1,3066.0,1.496]
[1641666782026,2.00479,3066.2,3065.7,1.496]
[1641666782226,2.00479,3066.2,3065.8,0.640787]
[1641666782427,2.00479,3066.2,3065.9,0.264788]
[1641666782826,1.63011142,3066.8,3066.1,1.496]
[1641666783028,1.63011142,3066.8,3066.2,0.264788]
[1641666783227,2.00479,3066.9,3066.2,0.264788]
[1641666783827,2.00479,3066.9,3066.2,1.760788]
[1641666784028,0.044325,3066.8,3066.2,1.760788]
[1641666784329,0.044325,3066.8,3065.3,0.97866726]
[1641666784528,0.125855,3066.8,3065.1,1.496]
[1641666784731,14.135855,3066.8,3065.1,1.496]
[1641666784929,1.63053137,3066.0,3064.7,0.97888736]
[1641666785129,1.63053137,3066.0,3064.1,1.40984624]
[1641666785130,2.00479,3065.3,3064.5,3.50079]
[1641666785330,0.044325,3065.2,3064.6,0.905575]
[1641666785530,0.044325,3065.2,3065.1,1.496]
[1641666785930,2.00479,3065.3,3065.1,1.496]
[1641666786530,0.08155,3066.0,3065.2,0.264788]
[1641666786731,0.08154,3066.5,3065.4,1.496]
[1641666786935,0.08154,3066.5,3064.8,0.97883903]
[1641666787131,2.00479,3066.0,3065.3,2.00479]
[1641666787330,0.044325,3065.9,3065.1,1.496]
[1641666787629,0.044325,3065.9,3065.2,0.264788]
[1641666788030,0.044325,3065.9,3065.1,1.496]
[1641666788230,0.125865,3065.9,3065.1,1.496]
[1641666788833,0.125865,3065.9,3065.2,0.905575]
[1641666789030,0.044325,3065.9,3065.2,0.905575]
[1641666789232,2.00479,3065.5,3065.2,0.905575]
[1641666789433,2.00479,3065.5,3065.4,1.496]
[1641666789631,2.00479,3066.0,3065.4,1.760788]
[1641666789831,2.00479,3066.0,3065.9,1.496]
[1641666790032,2.00479,3066.0,3065.4,1.496]
[1641666790232,1.63007156,3066.9,3065.1,2.60881876]
[1641666790233,1.63007156,3066.9,3065.9,1.496]
[1641666790430,0.044325,3066.5,3065.7,1.496]
[1641666790834,0.044325,3066.5,3065.8,0.264788]
[1641666791033,0.044325,3066.5,3065.8,0.905575]
[1641666791232,0.044325,3066.5,3066.0,2.00479]
[1641666791432,0.044325,3066.5,3066.0,2.269578]
[1641666792837,0.044325,3066.5,3065.4,1.496]
[1641666793239,2.00479,3065.9,3065.4,1.496]
[1641666793539,2.00479,3065.9,3065.7,1.496]
[1641666793838,3.45219371,3066.7,3065.8,0.264788]
[1641666794038,3.37066371,3066.7,3065.8,0.264788]
[1641666794239,5.00084422,3066.7,3065.8,0.264788]
[1641666795039,3.37066371,3066.7,3065.8,0.264788]
[1641666795242,3.37066371,3066.7,3066.0,2.00479]
[1641666795440,1.63025492,3066.5,3066.0,2.00479]
[1641666795642,1.71178492,3066.5,3066.0,2.00479]
[1641666795840,1.71178492,3066.5,3065.8,0.264788]
[1641666795841,0.044325,3066.4,3065.8,0.264788]
[1641666796039,0.125855,3066.4,3064.5,1.17473035]
[1641666796241,14.01,3066.3,3065.1,1.496]
[1641666796440,0.08153,3066.2,3065.1,1.496]
[1641666796640,1.6305686,3065.9,3065.1,1.496]
[1641666796842,0.125865,3065.8,3065.2,0.905575]
[1641666797042,0.044325,3065.8,3065.2,0.905575]
[1641666797245,2.00479,3065.5,3065.2,0.905575]
[1641666797442,2.00479,3065.5,3065.4,1.496]
[1641666797641,2.00479,3065.5,3065.4,1.760788]
[1641666798244,2.00479,3065.8,3065.4,1.760788]
[1641666798842,0.08154,3066.4,3065.7,1.496]
[1641666799040,5.414,3066.8,3065.8,0.264788]
[1641666799241,7.41879,3066.8,3066.3,1.496]
[1641666799440,2.00479,3066.8,3066.3,0.640787]
[1641666799642,2.00479,3066.8,3066.4,0.264788]
[1641666800644,2.00479,3066.8,3066.4,1.760788]
[1641666800843,2.00479,3066.8,3066.4,0.264788]
[1641666801846,2.049115,3066.8,3066.4,0.264788]
[1641666802048,2.00479,3066.8,3066.4,0.264788]
[1641666803350,2.00479,3066.8,3066.4,1.760788]
[1641666803649,0.08151,3067.3,3066.7,1.496]
[1641666803849,5.414,3067.9,3067.2,1.496]
[1641666804049,5.412,3067.9,3066.8,5.216824]
[1641666804250,5.414,3067.8,3066.8,5.216824]
[1641666804449,1.62945268,3068.0,3066.8,5.216824]
[1641666804649,1.62945268,3068.0,3067.5,1.496]
[1641666804851,1.62945268,3068.0,3067.6,0.264788]
[1641666805251,2.00479,3067.9,3067.6,0.905575]
[1641666805951,2.00479,3067.9,3067.6,2.401575]
[1641666807253,2.00479,3067.9,3067.8,1.496]
[1641666807457,0.08149,3068.9,3067.9,0.264788]
[1641666807656,0.6521,3069.1,3068.8,1.496]
[1641666807854,0.129,3069.8,3069.0,2.996]
[1641666808055,0.08147,3070.2,3069.7,1.496]
[1641666808354,0.82476866,3070.4,3070.1,1.496]
[1641666808555,0.16586866,3070.4,3070.2,0.264788]
[1641666808753,6.866e-05,3070.4,3070.2,0.264788]
[1641666809155,1.37313449,3070.9,3070.2,0.264788]
[1641666809356,1.41745949,3070.9,3070.4,2.00479]
[1641666809555,1.41745949,3070.9,3070.4,2.269578]
[1641666809755,0.044325,3070.9,3070.5,0.640787]
[1641666809958,0.0814,3071.3,3070.8,1.496]
[1641666810155,0.0814,3071.3,3070.5,0.640787]
[1641666810156,0.0814,3072.2,3071.2,1.496]
[1641666810356,14.09137,3072.6,3071.0,1.496]
[1641666810555,1.62737373,3071.9,3071.2,1.496]
[1641666810755,0.044325,3071.8,3070.6,1.496]
[1641666810956,0.044325,3071.8,3071.1,1.496]
[1641666811356,2.049115,3071.8,3071.1,2.269578]
[1641666811959,2.049115,3071.8,3071.2,0.640787]
[1641666812158,0.640787,3071.7,3071.1,1.63264546]
[1641666812360,0.044325,3071.6,3071.1,1.63264546]
[1641666812559,0.640787,3071.7,3071.1,1.63264546]
[1641666812958,0.685112,3071.7,3071.1,1.63264546]
[1641666813159,0.766502,3071.7,3071.1,1.63264546]
[1641666813458,0.685112,3071.7,3071.1,1.63264546]
[1641666814361,0.640787,3071.7,3071.3,1.496]
[1641666814559,0.08139,3072.2,3071.6,1.496]
[1641666814758,0.6846,3073.1,3071.1,2.00864446]
[1641666814958,0.08136,3073.0,3072.0,1.496]
[1641666815161,0.08135,3073.2,3071.8,1.496]
[1641666815360,2.00479,3072.7,3072.0,2.00479]
[1641666815561,1.62707981,3072.5,3072.0,2.00479]
[1641666815768,0.640787,3072.6,3072.0,2.00479]
[1641666815967,0.125685,3072.5,3071.2,29.1400918]
[1641666816367,1.62735784,3072.0,3071.2,29.1400918]
[1641666816568,0.044325,3071.9,3071.2,29.1400918]
[1641666817370,2.00479,3071.5,3071.2,29.1400918]
[1641666817570,2.689902,3071.5,3071.2,29.1400918]
[1641666817773,1.62776578,3071.3,3070.5,2.00479]
[1641666817970,0.08139,3071.2,3069.3,1.496]
[1641666818370,14.01,3071.4,3069.3,1.496]
[1641666818371,0.08142,3071.3,3069.3,0.0733]
[1641666818570,1.4267,3070.5,3069.3,0.0733]
[1641666818774,1.62825611,3070.3,3069.7,0.0733]
[1641666818972,1.62825611,3070.3,3069.8,0.640787]
[1641666818973,1.67258111,3070.3,3069.8,0.640787]
[1641666819171,1.67258111,3070.3,3070.0,0.0733]
[1641666819371,1.62825611,3070.3,3070.0,0.338088]
[1641666819572,2.00479,3070.6,3070.2,0.0733]
[1641666819773,2.00479,3070.6,3070.5,0.0733]
[1641666820174,2.00479,3070.6,3070.3,0.264788]
[1641666820374,2.00479,3070.6,3069.5,1.37603562]
[1641666820375,0.044325,3070.5,3070.0,0.0733]
[1641666820574,0.044325,3070.5,3070.0,0.338088]
[1641666820776,0.044325,3070.5,3070.0,0.264788]
[1641666820976,2.00479,3070.6,3070.4,0.0733]
[1641666821277,1.70883994,3071.8,3070.4,0.0733]
[1641666821576,0.0814,3071.8,3070.9,0.0733]
[1641666821777,2.00479,3071.9,3070.9,0.0733]
[1641666821978,1.4267,3071.7,3070.6,0.0733]
[1641666822180,0.08139,3071.6,3070.6,0.0733]
[1641666822579,1.18105865,3071.5,3070.5,4.00958]
[1641666822777,0.08139,3071.4,3070.5,4.00958]
[1641666822979,1.18105865,3071.5,3070.2,0.0733]
[1641666823176,1.62776578,3071.2,3070.2,0.0733]
[1641666823378,2.00479,3070.7,3070.5,0.0733]
[1641666823579,2.00479,3070.7,3070.5,0.640787]
[1641666823778,2.00479,3070.7,3070.2,0.0733]
[1641666823978,2.049115,3070.7,3070.2,0.0733]
[1641666824181,2.049115,3070.7,3070.0,2.00479]
[1641666825485,2.049115,3070.7,3070.2,0.0733]
[1641666826281,2.049115,3070.7,3070.4,0.0733]
[1641666826483,2.049115,3070.7,3070.1,0.0733]
[1641666826683,2.049115,3070.7,3070.0,2.00479]
[1641666826883,2.049115,3070.7,3069.7,2.00479]
[1641666826884,1.4267,3070.3,3067.2,1.40844775]
[1641666827084,3.05512845,3070.0,3068.2,1.62842845]
[1641666827283,0.08144,3069.9,3068.6,0.0733]
[1641666827484,2.00479,3069.3,3068.6,0.0733]
[1641666827784,0.044325,3069.2,3068.7,0.905575]
[1641666827985,0.044325,3069.2,3068.7,0.264788]
[1641666828582,2.00479,3069.6,3069.1,0.0733]
[1641666828784,1.09185208,3070.3,3069.5,0.0733]
[1641666829083,0.044325,3070.2,3069.2,0.0733]
[1641666829284,0.044325,3070.2,3068.6,1.62821369]
[1641666829583,0.044325,3070.2,3069.6,2.00479]
[1641666829785,0.640787,3070.1,3069.6,2.00479]
[1641666829983,0.044325,3070.0,3069.6,2.00479]